bitfinex-derivatives/quotes_SOLF0:USTF0_20250709
["timestamp","ask_amount","ask_price","bid_price","bid_amount"]
[1752093070608,4.16579794,155.52,155.48,8.95366541]
[1752093071302,4.16579794,155.52,155.47,8.95366541]
[1752093071505,193.14,155.56,155.47,8.95366541]
[1752093071706,6.4292,155.51,155.47,15.38386541]
[1752093072107,4.16579794,155.53,155.48,8.95366541]
[1752093072309,6.4296,155.5,155.48,8.95366541]
[1752093072507,4.16579794,155.53,155.48,8.95366541]
[1752093073006,6.4295,155.5,155.48,8.95366541]
[1752093073804,6.4296,155.49,155.48,8.95366541]
[1752093074406,193.08,155.53,155.48,8.95366541]
[1752093074809,138.53257815,155.57,155.49,4.16579794]
[1752093075001,4.16579794,155.55,155.5,8.95366541]
[1752093075202,4.16579794,155.54,155.5,8.95366541]
[1752093075598,193.06,155.56,155.51,8.95366541]
[1752093075905,4.16579794,155.56,155.51,8.95366541]
[1752093076202,6.4279,155.54,155.51,6.4286]
[1752093076403,6.4279,155.54,155.5,8.95366541]
[1752093076801,6.4279,155.54,155.5,15.38256541]
[1752093077005,6.4279,155.54,155.51,8.95366541]
[1752093077205,6.4279,155.54,155.51,15.38246541]
[1752093077508,555.36,155.6,155.53,13.11946335]
[1752093077708,555.36,155.6,155.55,4.16579794]
[1752093077908,6.4262,155.58,155.55,10.59269794]
[1752093078111,555.36,155.6,155.55,10.59269794]
[1752093078112,748.4,155.6,155.56,8.95366541]
[1752093078305,561.7853,155.6,155.56,15.38006541]
[1752093078508,555.36,155.6,155.57,13.11946335]
[1752093078707,555.36,155.6,155.58,8.95366541]
[1752093078910,193.02,155.63,155.58,8.95366541]
[1752093079115,6.31919794,155.65,155.58,8.95366541]
[1752093079308,193.02,155.63,155.58,8.95366541]
[1752093079504,193.02,155.63,155.59,8.95366541]
[1752093079710,192.98,155.62,155.59,8.95366541]
[1752093080212,6.4249,155.61,155.58,8.95366541]
[1752093080710,192.98,155.62,155.58,8.95366541]
[1752093081412,6.31919794,155.65,155.58,8.95366541]
[1752093081613,2.1534,155.65,155.58,8.95366541]
[1752093081816,192.96,155.64,155.59,8.95366541]
[1752093082020,6.4237,155.64,155.6,15.37846541]
[1752093082212,6.4237,155.64,155.59,13.11946335]
[1752093082414,192.96,155.65,155.59,13.11946335]
[1752093082610,4.16579794,155.66,155.59,13.11946335]
[1752093082809,192.92,155.65,155.59,13.11946335]
[1752093083104,6.4241,155.63,155.6,6.425]
[1752093083815,6.4235,155.64,155.61,6.4246]
[1752093084310,557.5883,155.68,155.59,13.11946335]
[1752093084613,192.9,155.67,155.62,8.95366541]
[1752093084806,192.9,155.67,155.61,13.11946335]
[1752093085010,199.3227,155.66,155.61,13.11946335]
[1752093085211,199.3227,155.66,155.62,8.95366541]
[1752093085512,6.4223,155.67,155.62,8.95366541]
[1752093085711,6.4223,155.67,155.63,4.16579794]
[1752093085916,748.18,155.68,155.63,4.16579794]
[1752093086116,555.32,155.68,155.63,13.11946335]
[1752093086712,561.742,155.68,155.65,6.4229]
[1752093087015,754.602,155.68,155.65,6.4229]
[1752093087520,748.16,155.68,155.63,13.11946335]
[1752093088016,748.16,155.68,155.65,6.4228]
[1752093088212,555.32,155.68,155.65,4.16579794]
[1752093088416,4.16579794,155.73,155.67,10.58769794]
[1752093088608,4.16579794,155.75,155.67,4.16579794]
[1752093088814,6.4203,155.72,155.67,4.16579794]
[1752093089015,4.16579794,155.75,155.67,4.16579794]
[1752093089216,192.82,155.74,155.67,4.16579794]
[1752093089620,4.16579794,155.73,155.65,13.11946335]
[1752093089820,4.16579794,155.73,155.65,4.16579794]
[1752093090114,4.16579794,155.73,155.66,4.16579794]
[1752093090320,4.16579794,155.75,155.68,4.16579794]
[1752093090519,6.4201,155.73,155.68,4.16579794]
[1752093090721,192.78,155.74,155.68,4.16579794]
[1752093091117,6.4202,155.72,155.68,4.16579794]
[1752093091415,555.18,155.76,155.7,4.16579794]
[1752093091622,747.94,155.76,155.72,4.16579794]
[1752093092116,192.72,155.76,155.72,4.16579794]
[1752093092624,192.72,155.76,155.7,4.16579794]
[1752093093419,192.72,155.76,155.72,6.4199]
[1752093093922,192.72,155.76,155.7,4.16579794]
[1752093093923,6.4196,155.74,155.71,6.4203]
[1752093094124,192.72,155.76,155.7,4.16579794]
[1752093094913,196.88579794,155.76,155.69,8.76749794]
[1752093095923,196.88579794,155.76,155.7,6.4206]
[1752093095924,6.4199,155.73,155.7,6.4206]
[1752093096922,6.4195,155.74,155.71,6.4205]
[1752093097123,196.88579794,155.76,155.69,8.76749794]
[1752093097823,196.88579794,155.76,155.69,4.6017]
[1752093098224,192.6,155.75,155.71,6.4203]
[1752093098423,192.6,155.75,155.72,4.16579794]
[1752093098618,192.58,155.78,155.72,4.16579794]
[1752093098818,559.12579794,155.82,155.74,4.16579794]
[1752093099028,192.58,155.81,155.76,4.16579794]
[1752093099224,192.58,155.81,155.77,6.4181]
[1752093099225,6.4171,155.8,155.77,6.4181]
[1752093099419,192.58,155.81,155.7,8.95366541]
[1752093099623,4.15540245,155.75,155.69,2.2387]
[1752093099921,192.56,155.75,155.67,4.15540245]
[1752093100127,196.71540245,155.75,155.67,4.15540245]
[1752093100427,4.15540245,155.73,155.65,6.38110245]
[1752093100824,6.4213,155.7,155.67,6.422]
[1752093101025,4.15540245,155.72,155.65,6.38110245]
[1752093101224,6.4208,155.71,155.68,6.4217]
[1752093102027,6.421,155.7,155.67,6.4221]
[1752093103331,6.4216,155.69,155.66,6.4225]
[1752093103533,4.15540245,155.72,155.65,2.2257]
[1752093103737,4.15540245,155.7,155.64,2.3623]
[1752093103937,6.422,155.68,155.65,6.4226]
[1752093104735,6.422,155.68,155.66,6.4226]
[1752093104940,6.4215,155.69,155.66,6.4226]
[1752093105234,4.15540245,155.72,155.64,2.3623]
[1752093105534,4.15540245,155.72,155.67,6.4219]
[1752093105835,6.4212,155.7,155.65,4.15540245]
[1752093106027,6.4212,155.7,155.67,6.422]
[1752093106938,6.4215,155.69,155.66,6.4224]
[1752093107435,6.4211,155.7,155.67,6.4219]
[1752093107934,6.4204,155.72,155.64,6.51770245]
[1752093108135,196.65540245,155.75,155.66,4.15540245]
[1752093108643,6.42,155.73,155.7,6.4209]
[1752093109136,4.15540245,155.75,155.69,6.4211]
[1752093109334,2.2883,155.79,155.67,2.3031]
[1752093109539,4.15540245,155.75,155.68,3.66371615]
[1752093109727,6.42,155.73,155.69,6.4212]
[1752093109930,6.42,155.73,155.67,2.3031]
[1752093109931,6.42,155.73,155.68,4.15540245]
[1752093110434,6.42,155.73,155.7,6.4207]
[1752093110634,6.4195,155.74,155.68,4.15540245]
[1752093111038,6.4198,155.73,155.7,6.4207]
[1752093112435,6.44370245,155.79,155.72,4.15540245]
[1752093112634,196.61540245,155.81,155.74,4.15540245]
[1752093112838,4.15540245,155.81,155.74,4.15540245]
[1752093113034,6.4175,155.79,155.76,6.4183]
[1752093113242,192.46,155.82,155.76,4.15540245]
[1752093113635,558.81540245,155.85,155.76,4.15540245]
[1752093113936,751.27540245,155.85,155.76,4.15540245]
[1752093114339,558.81540245,155.85,155.76,4.15540245]
[1752093114541,192.44,155.84,155.76,4.15540245]
[1752093114844,192.44,155.84,155.76,6.22536886]
[1752093115040,6.4166,155.81,155.78,6.4174]
[1752093115437,6.4166,155.81,155.76,6.22536886]
[1752093115937,554.66,155.85,155.77,3.66725724]
[1752093116139,747.06,155.85,155.78,3.66694415]
[1752093116336,6.4158,155.83,155.8,6.4166]
[1752093116740,747.06,155.85,155.78,6.22536886]
[1752093117043,747.06,155.85,155.79,3.66770655]
[1752093117348,554.66,155.85,155.8,3.66863325]
[1752093117643,6.4154,155.84,155.81,6.4162]
[1752093118236,561.0749,155.85,155.78,6.22536886]
[1752093118440,561.0749,155.85,155.79,3.67017378]
[1752093118635,554.66,155.85,155.8,3.67017378]
[1752093118942,554.66,155.85,155.79,6.22536886]
[1752093119138,554.66,155.85,155.8,3.67025713]
[1752093119344,554.66,155.85,155.78,6.4174]
[1752093119538,554.66,155.85,155.75,11.23136541]
[1752093119738,554.66,155.85,155.78,6.4176]
[1752093120143,554.66,155.85,155.76,15.17903427]
[1752093120346,554.66,155.85,155.77,3.67627044]
[1752093120639,554.66,155.85,155.76,15.17903427]
[1752093120640,6.22536886,155.84,155.78,3.67627044]
[1752093120839,6.4179,155.78,155.74,8.95366541]
[1752093121040,198.56536886,155.8,155.71,11.14086541]
[1752093121234,6.22536886,155.78,155.72,3.67683915]
[1752093121437,194.6949,155.77,155.71,8.95366541]
[1752093121738,194.6949,155.77,155.72,3.67642235]
[1752093121935,6.22536886,155.76,155.68,18.16414438]
[1752093122142,6.22536886,155.76,155.69,3.67655713]
[1752093122341,6.22536886,155.76,155.7,3.67655713]
[1752093122646,6.42,155.73,155.71,3.67655713]
[1752093122848,6.22536886,155.76,155.72,3.67655713]
[1752093123142,194.6949,155.77,155.66,24.16178205]
[1752093123341,6.22536886,155.76,155.67,3.6834321]
[1752093123539,6.22536886,155.76,155.69,6.421]
[1752093123742,6.22536886,155.74,155.7,3.6834321]
[1752093123944,6.4201,155.72,155.71,3.6834321]
[1752093124143,198.54536886,155.72,155.67,8.92632752]
[1752093124444,198.54536886,155.72,155.66,8.92632752]
[1752093124748,6.4215,155.69,155.66,15.34892752]
[1752093124945,6.4215,155.69,155.65,8.92632752]
[1752093125242,6.4216,155.69,155.66,8.92632752]
[1752093125847,6.4211,155.7,155.66,8.92632752]
[1752093126747,6.4207,155.71,155.67,8.92632752]
[1752093126948,192.32,155.72,155.67,8.92632752]
[1752093127148,6.4207,155.71,155.68,6.4215]
[1752093127544,192.32,155.72,155.68,6.4215]
[1752093127748,6.421,155.7,155.67,15.34832752]
[1752093128145,6.421,155.7,155.68,8.92632752]
[1752093128548,6.421,155.7,155.67,15.34832752]
[1752093128843,192.32,155.72,155.67,15.34832752]
[1752093128844,6.4215,155.69,155.67,8.92632752]
[1752093129047,192.32,155.72,155.66,8.92632752]
[1752093129048,198.54536886,155.72,155.66,8.92632752]
[1752093129248,6.4216,155.69,155.67,8.92632752]
[1752093129747,6.4218,155.68,155.67,8.92632752]
[1752093130347,6.4216,155.69,155.67,8.92632752]
[1752093131143,6.4211,155.7,155.67,8.92632752]
[1752093131742,198.54536886,155.72,155.67,8.92632752]
[1752093131948,198.54536886,155.72,155.66,8.92632752]
[1752093131949,6.22536886,155.69,155.66,8.92632752]
[1752093132251,6.4225,155.67,155.64,8.92632752]
[1752093132447,6.22536886,155.69,155.64,8.92632752]
[1752093132747,6.22536886,155.69,155.64,15.34952752]
[1752093132947,6.4219,155.68,155.65,8.92632752]
[1752093134147,6.4222,155.67,155.65,8.92632752]
[1752093134341,6.22536886,155.67,155.63,8.92632752]
[1752093134548,6.22536886,155.67,155.61,8.92632752]
[1752093134747,6.22536886,155.67,155.6,8.92632752]
[1752093134947,6.22536886,155.65,155.59,8.92632752]
[1752093135147,6.22536886,155.65,155.58,8.92632752]
[1752093135351,6.4239,155.63,155.58,8.92632752]
[1752093135652,192.4,155.66,155.58,15.15169638]
[1752093136040,192.4,155.66,155.62,6.4239]
[1752093136244,192.4,155.66,155.59,8.92632752]
[1752093136445,198.8229,155.66,155.59,8.92632752]
[1752093136645,198.62536886,155.66,155.6,8.92632752]
[1752093136850,198.62536886,155.66,155.59,8.92632752]
[1752093137146,198.62536886,155.66,155.61,6.4245]
[1752093137147,6.4237,155.64,155.61,6.4245]
[1752093137450,198.62536886,155.66,155.57,8.92632752]
[1752093137651,198.62536886,155.66,155.6,6.4248]
[1752093137847,6.22536886,155.64,155.57,8.92632752]
[1752093138249,6.22536886,155.64,155.6,6.4247]
[1752093138746,6.22536886,155.64,155.56,11.23532752]
[1752093138747,6.4244,155.62,155.56,11.23532752]
[1752093138947,192.4,155.66,155.57,15.15169638]
[1752093139142,6.4237,155.64,155.57,15.15169638]
[1752093139451,192.4,155.66,155.57,15.15169638]
[1752093139953,192.4,155.66,155.58,8.92632752]
[1752093140453,6.4231,155.65,155.62,6.424]
[1752093140653,192.4,155.66,155.58,8.92632752]
[1752093140853,192.4,155.66,155.57,6.22536886]
[1752093140854,192.4,155.66,155.57,15.15169638]
[1752093141256,6.4231,155.65,155.62,6.424]
[1752093141655,6.4231,155.65,155.63,6.4238]
[1752093141855,198.8227,155.66,155.63,6.4238]
[1752093142060,198.8227,155.66,155.58,8.92632752]
[1752093142257,2.3225,155.68,155.61,6.22536886]
[1752093142456,8.7447,155.68,155.61,6.22536886]
[1752093142656,2.3225,155.68,155.64,6.4232]
[1752093143054,6.4224,155.67,155.6,6.22536886]
[1752093143553,192.96,155.7,155.62,6.22536886]
[1752093143855,193.04,155.72,155.64,6.22536886]
[1752093144058,193.02,155.72,155.64,6.22536886]
[1752093144556,6.4217,155.69,155.66,6.4224]
[1752093144749,193.02,155.72,155.66,6.4224]
[1752093144951,6.4216,155.69,155.66,6.4224]
[1752093145150,6.22536886,155.73,155.64,6.22536886]
[1752093145350,192.96,155.72,155.64,6.22536886]
[1752093145552,6.421,155.7,155.64,6.22536886]
[1752093145752,6.421,155.7,155.67,6.4219]
[1752093146560,6.4214,155.69,155.67,6.4219]
[1752093147647,6.22536886,155.69,155.63,8.92632752]
[1752093147848,6.22536886,155.67,155.61,8.92632752]
[1752093148051,193.96,155.66,155.61,8.92632752]
[1752093148357,193.96,155.66,155.59,15.15169638]
[1752093148755,6.4231,155.65,155.62,6.424]
[1752093149566,193.96,155.66,155.59,8.92632752]
[1752093149863,6.22536886,155.64,155.56,8.92632752]
[1752093150156,6.4236,155.64,155.58,6.22536886]
[1752093150360,193.96,155.66,155.58,8.92632752]
[1752093150660,6.22536886,155.64,155.57,6.4263]
[1752093150858,6.22536886,155.6,155.54,8.92632752]
[1752093151054,6.22536886,155.6,155.54,6.4276]
[1752093151260,200.30536886,155.6,155.52,2.3619]
[1752093151460,6.4261,155.58,155.52,2.3619]
[1752093151661,200.30536886,155.6,155.54,6.4273]
[1752093152461,200.30536886,155.6,155.53,6.4279]
[1752093153262,6.4264,155.57,155.53,6.4279]
[1752093153458,200.30536886,155.6,155.53,6.4279]
[1752093153659,6.4266,155.57,155.53,6.4279]
[1752093153854,200.30536886,155.6,155.54,6.4275]
[1752093154056,6.22536886,155.63,155.52,6.22536886]
[1752093154262,193.86,155.62,155.55,6.4267]
[1752093154463,193.86,155.62,155.52,6.22536886]
[1752093155160,193.86,155.62,155.54,6.22536886]
[1752093155361,200.00536886,155.63,155.54,8.92632752]
[1752093155561,200.00536886,155.63,155.56,6.4265]
[1752093155767,200.00536886,155.63,155.53,6.22536886]
[1752093155968,200.00536886,155.63,155.55,6.4269]
[1752093156468,200.00536886,155.63,155.53,6.22536886]
[1752093156664,6.22536886,155.59,155.51,8.92632752]
[1752093156868,193.78,155.63,155.47,8.92632752]
[1752093156869,6.22536886,155.55,155.47,8.92632752]
[1752093157080,6.4286,155.52,155.47,6.4302]
[1752093157263,193.66,155.53,155.45,70.92632752]
[1752093157463,193.66,155.53,155.46,6.22536886]
[1752093157766,193.66,155.53,155.46,19.66049638]
[1752093158267,200.0882,155.53,155.49,6.4294]
[1752093158467,193.66,155.53,155.49,6.4294]
[1752093158768,193.66,155.53,155.46,4.5088]
[1752093159271,6.4291,155.51,155.47,6.4302]
[1752093159469,193.66,155.53,155.45,62.0]
[1752093159872,6.4293,155.5,155.47,6.4302]
[1752093160373,193.66,155.53,155.46,6.4308]
[1752093160572,193.66,155.53,155.44,15.15169638]
[1752093161078,6.4298,155.49,155.46,6.4306]
[1752093161376,6.22536886,155.52,155.46,6.4306]
[1752093161671,6.4294,155.5,155.46,6.4306]
[1752093162071,6.43,155.49,155.46,6.4306]
[1752093162474,6.22536886,155.52,155.45,6.4311]
[1752093163278,193.66,155.53,155.44,15.15169638]
[1752093163776,193.66,155.53,155.44,6.22536886]
[1752093163976,6.22536886,155.52,155.43,8.92632752]
[1752093164178,6.22536886,155.52,155.44,8.92632752]
[1752093164378,6.22536886,155.52,155.44,15.15169638]
[1752093164774,6.4297,155.49,155.46,6.4307]
[1752093165072,6.22536886,155.52,155.43,8.92632752]
[1752093165270,6.4312,155.46,155.43,15.35832752]
[1752093165473,6.22536886,155.5,155.43,8.92632752]
[1752093165874,6.4309,155.46,155.44,8.92632752]
[1752093166486,6.4309,155.46,155.43,15.35842752]
[1752093166872,6.4314,155.45,155.43,8.92632752]
[1752093167077,6.22536886,155.48,155.42,15.35872752]
[1752093167280,6.22536886,155.48,155.42,8.92632752]
[1752093168179,6.22536886,155.48,155.42,15.35882752]
[1752093168975,6.22536886,155.48,155.42,8.92632752]
[1752093169379,6.22536886,155.48,155.41,15.35912752]
[1752093169575,6.22536886,155.48,155.41,8.92632752]
[1752093169883,2.306,155.51,155.41,8.92632752]
[1752093170085,6.22536886,155.5,155.41,8.92632752]
[1752093170483,193.36,155.49,155.43,6.4319]
[1752093170684,6.22536886,155.48,155.41,8.92632752]
[1752093170886,6.4321,155.43,155.41,8.92632752]
[1752093171088,6.4321,155.43,155.4,15.35942752]
[1752093171283,6.22536886,155.46,155.4,15.35942752]
[1752093171586,6.4318,155.44,155.41,6.4328]
[1752093171989,6.22536886,155.47,155.41,6.4329]
[1752093172187,6.22536886,155.47,155.4,8.92632752]
[1752093172381,193.36,155.49,155.4,8.92632752]
[1752093172590,193.36,155.49,155.41,8.92632752]
[1752093172792,199.58536886,155.49,155.41,8.92632752]
[1752093173187,6.4307,155.47,155.44,6.4316]
[1752093173697,6.4309,155.46,155.43,6.4321]
[1752093173886,6.22536886,155.49,155.41,8.92632752]
[1752093174189,6.22536886,155.49,155.41,15.15169638]
[1752093174496,6.22536886,155.49,155.42,8.92632752]
[1752093174894,6.4307,155.47,155.44,6.4315]
[1752093175288,6.4298,155.49,155.46,6.4307]
[1752093176296,6.4301,155.48,155.45,6.4311]
[1752093178195,6.4305,155.47,155.44,6.4316]
[1752093178401,6.22536886,155.47,155.42,8.92632752]
[1752093178689,6.4311,155.46,155.43,6.4319]
[1752093178890,195.826,155.51,155.42,8.92632752]
[1752093179194,12.8525,155.58,155.43,6.22536886]
[1752093179392,193.62,155.51,155.43,6.22536886]
[1752093179596,193.62,155.51,155.42,8.92632752]
[1752093179794,6.4299,155.49,155.46,6.4306]
[1752093179987,199.84536886,155.51,155.44,8.92632752]
[1752093180192,193.62,155.51,155.44,8.92632752]
[1752093180402,6.22536886,155.5,155.43,8.92632752]
[1752093180795,8.51696886,155.5,155.43,15.35802752]
[1752093180993,8.51696886,155.5,155.43,8.92632752]
[1752093181197,6.22536886,155.48,155.43,8.92632752]
[1752093181394,6.22536886,155.48,155.42,8.92632752]
[1752093181792,6.22536886,155.48,155.41,8.92632752]
[1752093182100,6.432,155.44,155.4,6.4332]
[1752093182294,6.22536886,155.46,155.4,8.92632752]
[1752093182595,6.22536886,155.46,155.39,8.92632752]
[1752093182901,6.22536886,155.46,155.4,8.92632752]
[1752093183100,6.4324,155.43,155.39,8.92632752]
[1752093183493,193.84,155.45,155.4,6.22536886]
[1752093183995,193.84,155.45,155.39,8.92632752]
[1752093184194,193.84,155.45,155.4,8.92632752]
[1752093184498,193.84,155.45,155.39,8.92632752]
[1752093184797,193.84,155.45,155.4,8.92632752]
[1752093184999,193.84,155.45,155.41,6.4328]
[1752093185200,193.84,155.45,155.39,8.92632752]
[1752093185898,6.4319,155.44,155.39,8.92632752]
[1752093186103,6.4319,155.44,155.41,6.4326]
[1752093186499,2.2916,155.5,155.4,6.22536886]
[1752093186697,195.02,155.49,155.4,6.22536886]
[1752093186896,201.24536886,155.49,155.39,15.15169638]
[1752093187298,201.24536886,155.49,155.43,6.4319]
[1752093187596,6.22536886,155.47,155.4,8.92632752]
[1752093187998,6.4317,155.45,155.4,8.92632752]
[1752093188203,201.24536886,155.49,155.39,8.92632752]
[1752093188404,201.24536886,155.49,155.38,8.46936886]
[1752093188405,195.1,155.48,155.4,15.15169638]
[1752093188605,6.4307,155.47,155.4,15.15169638]
[1752093189000,555.48,155.54,155.44,6.22536886]
[1752093189206,6.429,155.51,155.44,6.22536886]
[1752093189402,201.68536886,155.53,155.47,6.4302]
[1752093189706,201.68536886,155.53,155.44,6.22536886]
[1752093189906,201.68536886,155.53,155.45,6.431]
[1752093190199,195.5,155.52,155.43,6.22536886]
[1752093190401,195.5,155.52,155.42,2.1502]
[1752093190600,6.22536886,155.51,155.42,17.30189638]
[1752093190801,201.62536886,155.51,155.44,8.92632752]
[1752093190995,6.4303,155.48,155.44,8.92632752]
[1752093191505,6.4305,155.47,155.44,8.92632752]
[1752093191704,6.4305,155.47,155.44,6.4315]
[1752093191906,195.4,155.51,155.43,70.92632752]
[1752093192204,561.78536886,155.57,155.5,6.4289]
[1752093192402,195.44,155.56,155.49,8.92632752]
[1752093192607,195.44,155.56,155.48,6.22536886]
[1752093192608,6.4282,155.53,155.48,6.22536886]
[1752093192806,195.42,155.55,155.48,6.22536886]
[1752093193008,6.4272,155.55,155.51,8.92632752]
[1752093193206,6.4272,155.55,155.52,6.4282]
[1752093193605,6.4272,155.55,155.5,6.22536886]
[1752093193905,6.4272,155.55,155.51,6.4284]
[1752093194102,750.92,155.57,155.5,6.22536886]
[1752093194103,555.56,155.57,155.52,8.92632752]
[1752093194308,750.84,155.57,155.52,8.92632752]
[1752093194710,750.84,155.57,155.51,8.92632752]
[1752093194911,750.84,155.57,155.5,6.22536886]
[1752093195114,750.84,155.57,155.51,6.4288]
[1752093195306,555.56,155.57,155.51,6.4288]
[1752093195510,195.18,155.56,155.51,6.4288]
[1752093195711,195.16,155.56,155.51,6.4288]
[1752093195909,195.16,155.56,155.51,15.35512752]
[1752093196111,195.16,155.56,155.52,8.92632752]
[1752093196311,6.4274,155.55,155.51,15.35512752]
[1752093196506,195.16,155.56,155.51,8.92632752]
[1752093197113,6.4278,155.54,155.51,8.92632752]
[1752093197302,195.16,155.56,155.51,8.92632752]
[1752093197712,6.22536886,155.55,155.49,8.92632752]
[1752093198410,6.4288,155.52,155.49,8.92632752]
[1752093198618,195.0,155.52,155.49,8.92632752]
[1752093199118,201.4285,155.52,155.5,8.92632752]
[1752093199616,195.0,155.52,155.5,8.92632752]
[1752093200115,201.4284,155.52,155.51,8.92632752]
[1752093200512,201.4284,155.52,155.46,6.22536886]
[1752093200513,195.0,155.52,155.5,8.92632752]
[1752093202321,6.4288,155.51,155.5,8.92632752]
[1752093202513,561.78536886,155.57,155.5,8.92632752]
[1752093202717,194.7,155.56,155.52,8.92632752]
[1752093203314,6.4272,155.55,155.52,8.92632752]
[1752093203515,194.7,155.56,155.51,8.92632752]
[1752093204114,194.7,155.56,155.51,15.35502752]
[1752093204313,6.4279,155.54,155.51,15.35502752]
[1752093204719,194.66,155.55,155.51,8.92632752]
[1752093205215,6.428,155.53,155.51,8.92632752]
[1752093205621,6.4284,155.52,155.51,8.92632752]
[1752093205920,200.88536886,155.55,155.49,8.92632752]
[1752093206722,6.22536886,155.53,155.49,8.92632752]
[1752093207023,6.4299,155.49,155.47,8.92632752]
[1752093207223,194.44,155.48,155.47,8.92632752]
[1752093207611,555.56,155.57,155.47,8.92632752]
[1752093207818,196.5981,155.56,155.5,8.92632752]
[1752093208021,2.2181,155.56,155.51,8.92632752]
[1752093208313,194.36,155.55,155.51,8.92632752]
[1752093208512,194.36,155.55,155.5,8.92632752]
[1752093208717,194.36,155.55,155.49,8.92632752]
[1752093209221,6.4291,155.51,155.49,8.92632752]
[1752093209421,194.34,155.51,155.49,8.92632752]
[1752093210224,200.7691,155.51,155.49,8.92632752]
[1752093210422,555.56,155.57,155.49,8.92632752]
[1752093210620,200.54830861,155.56,155.49,8.92632752]
[1752093211020,200.54830861,155.56,155.49,15.35562752]
[1752093211522,6.4287,155.52,155.49,15.35562752]
[1752093211722,194.18,155.52,155.5,8.92632752]
[1752093212224,194.18,155.52,155.49,8.92632752]
[1752093212424,194.32,155.53,155.49,8.92632752]
[1752093212922,6.429,155.51,155.49,8.92632752]
[1752093213424,555.56,155.57,155.49,8.92632752]
[1752093213627,555.56,155.57,155.5,6.24830861]
[1752093213827,555.56,155.57,155.5,15.17463613]
[1752093214127,6.4272,155.55,155.52,15.35452752]
[1752093214324,200.8672,155.55,155.52,15.35452752]
[1752093214526,194.44,155.55,155.52,8.92632752]
[1752093214721,6.4288,155.51,155.5,8.92632752]
[1752093214917,194.36,155.52,155.48,8.92632752]
[1752093215124,194.36,155.52,155.49,8.92632752]
[1752093216027,194.36,155.52,155.51,8.92632752]
[1752093216028,194.42,155.52,155.51,8.92632752]
[1752093216534,194.42,155.52,155.51,15.35512752]
[1752093216827,555.56,155.57,155.5,6.24830861]
[1752093216828,194.36,155.54,155.5,6.24830861]
[1752093217028,6.4274,155.55,155.52,15.41017837]
[1752093217230,2.2181,155.59,155.52,15.41017837]
[1752093217423,194.36,155.58,155.52,15.41017837]
[1752093217734,194.3,155.57,155.52,15.41017837]
[1752093218030,194.3,155.56,155.52,15.41017837]
[1752093219027,6.4274,155.55,155.52,15.41017837]
[1752093219230,2.1386,155.59,155.53,8.98207837]
[1752093219426,2.1386,155.59,155.54,8.98207837]
[1752093219634,6.4271,155.56,155.53,15.40997837]
[1752093219821,194.16,155.58,155.53,8.98207837]
[1752093220333,194.16,155.58,155.52,8.98207837]
[1752093220627,6.24830861,155.57,155.5,8.98207837]
[1752093220822,6.24830861,155.55,155.5,8.98207837]
[1752093221029,194.24,155.54,155.48,8.98207837]
[1752093221432,6.4294,155.5,155.48,8.98207837]
[1752093222028,6.4296,155.49,155.47,8.98207837]
[1752093223332,200.6694,155.5,155.47,8.98207837]
[1752093223532,194.24,155.5,155.48,8.98207837]
[1752093223732,6.4299,155.49,155.47,8.98207837]
[1752093224330,194.24,155.5,155.47,8.98207837]
[1752093224538,561.56830861,155.56,155.47,18.14383111]
[1752093224732,194.08,155.53,155.5,8.98151317]
[1752093224932,6.4286,155.52,155.5,15.41071317]
[1752093225128,6.4286,155.52,155.5,8.98151317]
[1752093226335,6.4288,155.51,155.5,8.98151317]
[1752093226541,194.08,155.53,155.49,8.98151317]
[1752093226838,194.08,155.53,155.48,8.98151317]
[1752093226839,6.24830861,155.52,155.48,8.98151317]
[1752093227038,6.24830861,155.52,155.47,8.98151317]
[1752093227432,6.43,155.48,155.47,8.98151317]
[1752093227634,6.43,155.48,155.46,15.41221317]
[1752093228238,200.9698,155.49,155.47,6.4304]
[1752093228438,194.54,155.49,155.47,15.41191317]
[1752093228842,194.54,155.49,155.47,8.98151317]
[1752093229539,194.54,155.49,155.48,8.98151317]